Cogmind - Beta 15 @@@ ROGUE MODE // 2025.10.07 @ 12:17:27 Player: GayPredator Result: Destroyed by S-10 Pest with Light Assault Rifle Performance ------------- Evolutions (0) 0 Regions Visited (4) 800 Robots Destroyed (18) 90 Value Destroyed (427) 427 Prototype IDs (0) 0 Alien Tech Used (0) 0 Bonus (35) 35 TOTAL SCORE: 1352 Bonus ------- Follower Combat Kills 35 Cogmind --------- Core Integrity 0/250 Matter 300/300 Energy 98/100 System Corruption 2% Temperature Cool (0) Movement Core (50) Location -9/Mines Parts ------- > --- POWER (1) -------- (None) > --- PROPULSION (2) --- (None) > --- UTILITY (2) ------ (None) > --- WEAPON (2) ------- (None) > --- INVENTORY (5) ---- Medium Storage Unit Sensor Array Makeshift Terrain Scan Processor Beam Rifle Beam Rifle Peak State ------------ > --- POWER ------------ Ion Engine > --- PROPULSION ------- Improved Treads Improved Treads > --- UTILITY ---------- Large Storage Unit Seismic Detector > --- WEAPON ----------- Beam Rifle Beam Rifle > --- INVENTORY -------- Ion Engine Light Treads Improved Treads Improved Treads Heat Sink Medium Storage Unit Large Matter Pod Sensor Array Signal Interpreter Improved Terrain Scanner Propulsion Shielding Mini Grenade Launcher Mini Grenade Launcher Mini Grenade Launcher Hammer [Rating: 13] Favorites ----------- Power Ion Engine Engine Ion Engine Propulsion Improved Treads Treads Improved Treads Utility Seismic Detector Device Seismic Detector Storage Large Storage Unit Protection Propulsion Shielding Weapon Beam Rifle Energy Gun Beam Rifle Launcher Mini Grenade Launcher Impact Weapon Hammer Build | -11 -10 -10 -10 -9 ------- Run | Yrd Mat Min Exi Min Slots Evolved . | . . . . . Power . | . . . . . Propulsion . | . . . . . Utility . | . . . . . Weapon . | . . . . . Parts Attached 27 | 7 9 1 . 10 Power 3 | 1 1 . . 1 Engine 3 | 1 1 . . 1 Core . | . . . . . Reactor . | . . . . . Propulsion 7 | 2 2 . . 3 Treads 7 | 2 2 . . 3 Leg . | . . . . . Wheel . | . . . . . Hover . | . . . . . Flight . | . . . . . Utility 5 | 2 1 . . 2 Device 2 | 1 . . . 1 Storage 2 | 1 1 . . . Processor . | . . . . . Hackware . | . . . . . Protection 1 | . . . . 1 Artifact . | . . . . . Weapon 12 | 2 5 1 . 4 Energy Gun 7 | 2 3 . . 2 Energy Cannon . | . . . . . Ballistic Gun . | . . . . . Ballistic Cannon . | . . . . . Launcher 4 | . 1 1 . 2 Special Weapon . | . . . . . Impact Weapon 1 | . 1 . . . Slashing Weapon . | . . . . . Piercing Weapon . | . . . . . Special Melee Weapon . | . . . . . Unidentified Prototypes . | . . . . . Parts Lost 10 | . 1 . . 9 Power 1 | . . . . 1 Propulsion 4 | . . . . 4 Utility 2 | . . . . 2 Weapon 3 | . 1 . . 2 Highest Loss Streak 9 | . 1 . . 9 To Critical Strikes . | . . . . . Average Backups 12 | 2 10 15 15 11 Power . | . 1 1 1 . Propulsion 2 | . 2 3 3 1 Utility 4 | . 4 6 6 5 Weapon 4 | . 3 5 5 3 Tool/Special . | . . . . . Unused Backups 11 | . 3 . 2 6 Power 1 | . 1 . . . Propulsion 1 | . 1 . . . Utility 8 | . 1 . 2 5 Weapon 1 | . . . . 1 Tool/Special . | . . . . . Average Slot Usage (%) 95 | . 100 100 100 72 Engine 13 | . 14 14 14 10 Treads 26 | . 28 28 28 19 Device 13 | . 14 14 14 9 Storage 13 | . 14 14 14 10 Energy Gun 26 | . 27 27 28 19 Peak Build Rating 13 | 7 13 13 13 13 Average Rating 10 | 5 9 13 13 9 On Entrance 9 | . 7 13 13 13 Naked Turns 88 | . . . . 88 Heaviest Build 33 | 15 32 32 32 33 Greatest Support 46 | 40 46 46 46 46 Greatest Overweight (x) 10 | . . . . 10 Average Overweight (x) . | . . . . . Largest Inventory Capacity 15 | 8 15 15 15 15 Average Capacity 14 | 7 14 15 15 12 Most Carried 15 | 4 15 15 15 15 Average Carried 12 | 2 10 15 14 11 Final Capacity 15 | 8 15 15 15 5 Final Carried 15 | 4 15 15 15 5 Class Distribution -------------------- 100% | Mutant Dominant Class ---------------- Mutant | -10/Materials Mutant | -10/Mines Mutant | -10/Exiles Mutant | -9/Mines Resources | -11 -10 -10 -10 -9 ----------- Run | Yrd Mat Min Exi Min Matter Collected 700 | 263 266 59 . 112 Remotely . | . . . . . Salvage Created 666 | 145 409 55 . 57 Parts 31 | 8 18 5 . . Haulers Intercepted 1 | . 1 . . . Recyclers Shooed . | . . . . . Parts Field Recycled . | . . . . . Retrieved Matter . | . . . . . Parts Self-Destructed . | . . . . . Prevented . | . . . . . Kills | -11 -10 -10 -10 -9 ------- Run | Yrd Mat Min Exi Min Combat Hostiles Destroyed 22 | . 8 4 . 10 Guns 12 | . 8 1 . 3 AOE 10 | . . 3 . 7 Classes Destroyed 7 | 2 3 1 . 1 Tunneler 3 | 3 . . . . Hauler 1 | . 1 . . . Recycler 1 | 1 . . . . Watcher 1 | . 1 . . . Swarmer 3 | . . 3 . . Grunt 9 | . 8 1 . . Assembled 10 | . . . . 10 Best Kill Streak 8 | 3 2 3 . 8 Combat Bots Only 8 | . 2 3 . 8 Max Kills in Single Turn 4 | 1 1 3 . 4 Gunslinging . | . . . . . Exploded 4 | . . 3 . 4 Melee . | . . . . . Uniques/NPCs Destroyed . | . . . . . Combat | -11 -10 -10 -10 -9 -------- Run | Yrd Mat Min Exi Min Hostile Shots Fired 123 | . 37 3 . 83 Missed 19 | . 9 2 . 8 Hits 104 | . 28 1 . 75 Melee 22 | . . . . 22 Projectile 82 | . 28 1 . 53 Part Disruptions 8 | . . . . 8 Damage Taken 1782 | . 361 54 . 1367 Core 255 | . 41 22 . 192 Absorbed by Shields . | . . . . . Redirected to Shielding 51 | . . . . 51 Core Remaining (%) 100 | 100 . . . . Volleys Fired 74 | 7 48 2 . 17 Largest 2 | 2 2 2 . 2 Hottest 112 | 100 100 112 . 112 Shots Fired 136 | 14 89 3 . 30 Gun 126 | 14 83 2 . 27 Cannon . | . . . . . Launcher 10 | . 6 1 . 3 Special . | . . . . . Kinetic . | . . . . . Thermal 126 | 14 83 2 . 27 Explosive 10 | . 6 1 . 3 Electromagnetic . | . . . . . Robot Hit Streak 17 | 11 17 2 . 7 Robot Miss Streak 4 | 1 4 . . 3 Penetration Max . | . . . . . Secondary Targets 2 | . 1 . . 1 Max Gunslinging Chain 1 | . 1 . . 1 Shots Hit Robots 87 | 12 55 2 . 18 Core Hits 51 | 5 23 4 . 19 Critical Kills . | . . . . . Critical Parts Destroyed . | . . . . . Critical Strikes 3 | 1 . . . 2 Burn 3 | 1 . . . 2 Melee Attacks 3 | . 3 . . . Impact 3 | . 3 . . . Slashing . | . . . . . Piercing . | . . . . . Sneak Attacks . | . . . . . Combat Hostiles . | . . . . . Follow-up Attacks . | . . . . . Damage Inflicted 1861 | 164 706 178 . 813 Guns 1124 | 161 700 16 . 247 Cannons . | . . . . . Explosions 728 | . . 162 . 566 Melee . | . . . . . Ramming 9 | 3 6 . . . Kinetic . | . . . . . Thermal 1124 | 161 700 16 . 247 Explosive 728 | . . 162 . 566 Electromagnetic . | . . . . . Impact . | . . . . . Slashing . | . . . . . Piercing . | . . . . . Highest Corruption 2 | . . . . 2 Average Corruption 2 | . . . . 2 Corruption Purged . | . . . . . Corruption Blocked . | . . . . . Effects 2 | . . . . 2 Heat Flow Errors 1 | . . . . 1 Data Loss (major) 1 | . . . . 1 Overload Shots . | . . . . . Overflow Damage 52 | . . 15 . 37 Projectiles . | . . . . . Explosions 52 | . . 15 . 37 Melee . | . . . . . Knockbacks . | . . . . . Impact . | . . . . . Kinetic . | . . . . . Secondary . | . . . . . Self-Inflicted Damage 185 | . . 44 . 141 Shots 4 | . . 1 . 3 Rammed 7 | 2 3 . . 2 Targets Rammed 7 | 2 3 . . 2 Kicked . | . . . . . Crushed . | . . . . . Highest Temperature 442 | 156 393 51 . 442 Average Temperature 123 | 68 112 29 . 169 Received Heat Transfer 1198 | . 198 . . 1000 Effects 2 | . 1 . . 1 Shutdowns 1 | . . . . 1 Energy Bleed 1 | . 1 . . . Siege Activations . | . . . . . Martial Activations . | . . . . . Shielding Activations . | . . . . . Robots Disrupted . | . . . . . Combat Hostiles . | . . . . . Robots Corrupted . | . . . . . Combat Hostiles . | . . . . . Parts Fried . | . . . . . Impact Corruptions . | . . . . . Robots Melted . | . . . . . Combat Hostiles . | . . . . . Parts Melted 2 | . 2 . . . Heat Transferred 3334 | 555 1965 37 . 777 Parts Sabotaged . | . . . . . Parts Stolen . | . . . . . Parts Stripped . | . . . . . Power Chain Reactions . | . . . . . Alert | -11 -10 -10 -10 -9 ------- Run | Yrd Mat Min Exi Min Maximum Alert Level . | . . . . . Low Security (%) 100 | 100 100 100 . 100 Level 1 . | . . . . . Level 2 . | . . . . . Level 3 . | . . . . . Level 4 . | . . . . . Level 5 . | . . . . . High Security . | . . . . . Max Security . | . . . . . Peak Influence 96 | 15 65 96 . 10 Initial 6 | . . 6 . . Average 17 | 2 18 33 . . Influence Increases 476 | 20 283 150 . 23 Destroy 0b10 Robot/C 260 | . 160 100 . . Destroy 0b10 Robot/NC 30 | 20 10 . . . Destroy Leader 64 | . 44 20 . . Allied During Kill 10 | . . 10 . . Successful Hack 10 | . 10 . . . Disable Machine 30 | . 15 15 . . Destroy Structure 42 | . 14 5 . 23 Lose Combat Pursuer 30 | . 30 . . . Influence Decreases 476 | 20 266 167 . 23 Entered New Map 11 | . . 11 . . Time Decay 432 | 20 256 156 . . Lost Part 33 | . 10 . . 23 Squads Dispatched 3 | . 3 . . . Investigation 1 | . 1 . . . Extermination . | . . . . . Reinforcement 2 | . 2 . . . Assault . | . . . . . Garrison . | . . . . . Intercept . | . . . . . Searches Triggered . | . . . . . Construction Impeded . | . . . . . Haulers Reinforced . | . . . . . Active Scanning Responses . | . . . . . Cargo Convoy Interrupts . | . . . . . Stealth | -11 -10 -10 -10 -9 --------- Run | Yrd Mat Min Exi Min Distress Signals 1 | . 1 . . . Communications Jammed . | . . . . . Distress Signals . | . . . . . Times Spotted 44 | . 18 5 . 21 Peak Tracking Total 9 | . 3 3 . 9 Tactical Retreats 7 | . 2 . . 5 Traps | -11 -10 -10 -10 -9 ------- Run | Yrd Mat Min Exi Min Traps Triggered 1 | . 1 . . . Indirectly . | . . . . . Trap Hack Attempts . | . . . . . Triggered . | . . . . . Disarmed . | . . . . . Reprogrammed . | . . . . . Reused . | . . . . . Traps Extracted . | . . . . . Installed . | . . . . . Triggered . | . . . . . Machines | -11 -10 -10 -10 -9 ---------- Run | Yrd Mat Min Exi Min Machines Disabled 2 | . 1 1 . . Max in Single Turn 1 | . 1 1 . . Machines Repaired . | . . . . . Machines Dismantled . | . . . . . Machines Sabotaged . | . . . . . Overloaded Fab Kills . | . . . . . Hacking | -11 -10 -10 -10 -9 --------- Run | Yrd Mat Min Exi Min Machines Accessed 6 | . 3 . 3 . Terminals 3 | . 3 . . . Fabricators . | . . . . . Repair Stations . | . . . . . Recycling Units . | . . . . . Scanalyzers . | . . . . . Garrison Access . | . . . . . Total Hacks 21 | . 10 . 11 . Successful 15 | . 4 . 11 . Failed 5 | . 5 . . . Catastrophic 1 | . 1 . . . Database Lockouts 1 | . 1 . . . Manual 10 | . 9 . 1 . Terminals 10 | . 10 . . . Fabricators . | . . . . . Repair Stations . | . . . . . Recycling Units . | . . . . . Scanalyzers . | . . . . . Garrison Access . | . . . . . Terminal Hacks 13 | . 2 . 11 . Record 11 | . . . 11 . Robot Analysis 1 | . 1 . . . Locate Traps 1 | . 1 . . . Fabricator Hacks . | . . . . . Repair Station Hacks . | . . . . . Recycling Unit Hacks . | . . . . . Scanalyzer . | . . . . . Garrison Access Hacks . | . . . . . Unauthorized Hacks 2 | . 2 . . . Terminals 2 | . 2 . . . Botnet 1 | . 1 . . . Disrupt 1 | . 1 . . . Fabricators . | . . . . . Repair Stations . | . . . . . Recycling Units . | . . . . . Scanalyzers . | . . . . . Garrison Access . | . . . . . Data Cores Recovered . | . . . . . Used . | . . . . . Hacking Detections 3 | . 3 . . . Full Trace Events . | . . . . . Feedback Events . | . . . . . Feedback Blocked . | . . . . . Robot Schematics Acquired . | . . . . . Robots Built . | . . . . . Authchips . | . . . . . Time . | . . . . . Total Robot Build Rating . | . . . . . Part Schematics Acquired . | . . . . . Parts Built . | . . . . . Authchips . | . . . . . Time . | . . . . . Total Part Build Rating . | . . . . . Parts Repaired . | . . . . . Time . | . . . . . Parts Recycled . | . . . . . Recycled Matter . | . . . . . Retrieved Matter . | . . . . . Retrieved Components . | . . . . . Parts Scanalyzed . | . . . . . Part Schematics Acquired . | . . . . . Parts Damaged . | . . . . . Bothacking | -11 -10 -10 -10 -9 ------------ Run | Yrd Mat Min Exi Min Used RIF Installer . | . . . . . Robots Hacked . | . . . . . Non-combat . | . . . . . Combat . | . . . . . Robot Hacks Applied . | . . . . . Relay Couplers Released . | . . . . . Fabnet Peak Effective % . | . . . . . Robots Rewired 2 | . . . 2 . Allies Hacked . | . . . . . Hacks Repelled . | . . . . . Allies | -11 -10 -10 -10 -9 -------- Run | Yrd Mat Min Exi Min Total Allies 5 | . . 3 2 . Largest Group 3 | . . 3 2 2 Highest-Rated Group 76 | . . 76 45 16 Highest-Rated Ally 31 | . . 31 31 8 Total Orders . | . . . . . Ally Attacks 6 | . . 2 . 4 Total Damage 65 | . . 44 . 21 Kills 1 | . . 1 . . Allies Corrupted . | . . . . . Allies Melted . | . . . . . Intel | -11 -10 -10 -10 -9 ------- Run | Yrd Mat Min Exi Min Active Infowar (turns) 2189 | 34 873 394 703 185 Seismic 2189 | 34 873 394 703 185 Robot Analysis Total 1 | . 1 . . . Derelict Logs Recovered 2 | . . 1 . 1 Drone Launches . | . . . . . Drone Recoveries . | . . . . . Exploration | -11 -10 -10 -10 -9 ------------- Run | Yrd Mat Min Exi Min Turns Passed 2449 | 135 873 394 703 344 Spaces Moved 1387 | 57 400 228 423 279 Core 175 | 3 . . . 172 Treads 1212 | 54 400 228 423 107 Legs . | . . . . . Wheels . | . . . . . Hover . | . . . . . Flight . | . . . . . Fastest Speed 50 | 50 160 160 160 50 Average Speed 146 | 154 160 160 160 93 Slowest Speed 550 | 160 160 160 160 550 Overloaded Moves . | . . . . . Propulsion Burnouts . | . . . . . Robots Hopped . | . . . . . Potential Cave-ins 6 | . 6 . . . Cave-ins Triggered . | . . . . . Exploration Rate (%) 57 | 5 76 57 90 60 Regions Visited 4 Branch Regions 3 Pre-discovered Areas . | . . . . . Known Exits Taken . | . . . . . Unknown Exits Taken 4 | 1 1 1 1 . Scrap Searched 2 | . . . . 2 Spaces Dug . | . . . . . Terrain Destroyed 122 | . 79 5 . 38 Melee . | . . . . . Projectile . | . . . . . AOE 122 | . 79 5 . 38 Terrain Rammed . | . . . . . Walls Destroyed . | . . . . . Machines Disabled . | . . . . . Actions | -11 -10 -10 -10 -9 --------- Run | Yrd Mat Min Exi Min Total 1650 | 86 537 254 450 323 Wait 88 | 10 47 21 2 8 Move 1383 | 56 399 227 422 279 Hop . | . . . . . Pick Up 25 | 4 16 1 2 2 Fast Attach 11 | 7 4 . . . Attach 8 | . 1 . . 7 Detach . | . . . . . Swap 14 | . 6 2 . 6 Drop 15 | . 10 1 2 2 Fire 74 | 7 48 2 . 17 Melee 3 | . 3 . . . Ram 1 | . . . . 1 Kick . | . . . . . Crush 6 | 2 3 . . 1 Escape Stasis . | . . . . . Rewire 22 | . . . 22 . Trap . | . . . . . Miscellaneous . | . . . . . Route ------- -11/Scrapyard -10/Materials (discovered 4 exits: [*Mat x3] / [*Min]) -10/Mines (discovered 3 exits: [*Mat x2] / *Exi) -10/Exiles -9/Mines History --------- Turn | Location | Event 4 | -11/Scrapyard | Discovered new exit (range 16) 136 | -11/Scrapyard | Entered Materials 272 | -10/Materials | Discovered new exit (range 14) 323 | -10/Materials | Build established: Mutant 454 | -10/Materials | Discovered new exit (range 16) 616 | -10/Materials | Discovered new exit (range 3) 851 | -10/Materials | Central database locked down 909 | -10/Materials | Discovered new exit (range 10) 1009 | -10/Materials | Entered Mines 1040 | -10/Mines | Learned 4 Materials zone layouts 1112 | -10/Mines | Received a Mining Laser from a helpful Derelict 1112 | -10/Mines | Discovered new exit (range 6) 1222 | -10/Mines | Discovered new exit (range 7) 1377 | -10/Mines | Deemed a non-threat by the Exiles lab entrance 1377 | -10/Mines | Discovered new exit (range 5) 1403 | -10/Mines | Entered Exiles 1403 | -10/Exiles | Found Exiles lab destroyed 1403 | -10/Exiles | Accompanied by 2 allies 1433 | -10/Exiles | Led the pair of lost Derelicts to a safe place 2084 | -10/Exiles | Discovered new exit (range 14) 2106 | -10/Exiles | Entered Mines 2106 | -9/Mines | Accompanied by 2 allies 2149 | -9/Mines | Received a Rocket Launcher from a helpful Derelict 2180 | -9/Mines | Learned Materials stockpile data 2254 | -9/Mines | Assembled infested the area 2259 | -9/Mines | Assisted by a Guerilla fighting off Assembled 2309 | -9/Mines | Lost 3 allies 2330 | -9/Mines | Core integrity fell below 50% 2331 | -9/Mines | Destroyed 8 combat bots 2362 | -9/Mines | Released all parts (5) 2363 | -9/Mines | Core integrity fell below 20% 2383 | -9/Mines | Lost 9 parts (1p4n2u2w) 2450 | -9/Mines | Destroyed by S-10 Pest with Light Assault Rifle Last Messages --------------- 02362_ Released Imp. Treads. 02362_ Released Beam Rifle. 02365_ as-93687 heat damages Asb. F-torch. 02366_ as-93687 heat spikes uncontrollably. 02366_ Acquired 41 matter. 02368_ Acquired 53 matter. 02373_ Acquired 18 matter. 02373_ U-05 Engineer lays Concrete. 02377_ K-01 Serf collects debris. 02377_ U-05 Engineer lays Concrete. 02377_ K-01 Serf collects debris. 02379_ U-05 Engineer lays Concrete. 02380_ K-01 Serf collects debris. 02381_ U-05 Engineer lays Concrete. 02384_ K-01 Serf collects debris. 02385_ U-05 Engineer lays Concrete. 02396_ System corrupted: Heat flow error (+190). 02426_ System corrupted: Substantial component data lost. [Achievement: I Think I Know What's Going On] Map ----- +----------------------------------------------------+ | | | | | | | | | | | | | | | | | | | | | | | | | ?????????????????????????????????????????????????? | | ?????????????????????????????????????????????????? | | ?????????????????????????????####????????????????? | | ?????????????##??###????????# #????????????????? | | ????????????? ## #???#??# ????????????????? | | ???????????? #?? ## ?????????????????? | | ???????????? ?? ??????????????????? | | ???????????? ?? ??????????????????? | | ????????????# ?? ???????????????????? | | ??????????? #??# ????????????????????? | | ?????????????# #?## ?????????????????????? | | ?????????????# ## ??????????????????????? | | ?????????????? s #??????????????????????? | | ??????????????????# # @#??????????????????????? | | ???????????###????# ## ##??????????????????????? | | ???????????# ????# ## ##???????????????????????? | | ???????????# #????# ## #????????????????????????? | | ???????????# ###??# ## #????????????????????????? | | ??????????## #### #????????????????????????? | | ?????????## ####????????????????????????? | | ????????## ### #???????????????????????????? | | ???###### ### #???????????????????????????? | | ?### #???????????????????????????? | | ## #???????????????????????????? | | # % #######???????????????????????????? | | ## ## #?????????????????????????????????? | | %######### #?????????????????????????????????? | | #???????## ##?????????????????????????????????? | | ##???????####??????????????????????????????????? | | ########??????????????????????????????????????? | | ##?????????????????????????????????????? | | ##???????????###??????????????????????? | | % ###???????## ##?????????????????????? | | ##%= ### ###?????# #?????????????????????? | | #### ##?## ###??## #??????????????????#### | | ???# #???# #### #???????????######? # | | ??## #???# ##??????????## ## # % | | ??# ##?## ###???????????# ## | +----------------------------------------------------+ Best States ------------- Heat Dissipation 47 Energy Generation 10 Energy Capacity 250 Matter Stores 300 Matter Capacity 300 Sight Range 16 Terrain Scan Density 10 Propulsion Shielding 33 Evasion (%) 50 Recoil Reduction 2 Item Schematics ----------------- None Robot Schematics ------------------ None Fabricated ------------ Nothing Repaired ---------- Nothing Alien Tech Used ----------------- None Achievements -------------- I Think I Know What's Going On Challenges ------------ None Game ------ Seed TrackerLightpackSlayer Manual? 0 Play Time 00:21:19 Cumulative 191.3 hours Start 2025.10.07 @ 11:54:39 End 2025.10.07 @ 12:17:27 Sessions 1 Manual Loads 0 Difficulty Rogue Special Mode None Game No. 173 Rogue 134 Adventurer 32 Explorer 7 Win Type - Total 2 Types 2/0/0/0/0/0/0/0/0/0 Lore% 50 Gallery% 64 Achievement% 55 Wizard Run 0 Options --------- Layout 1 ASCII 0 Keyboard 0 Movement Numpad Keybinds 0 Fullscreen 1 Font 24/Smallcaps Map View 50x35 Zoom Use 0% Tactical HUD 1 Map Filters NONE Filters NONE Steam 1 RUN: be2905fd-1e45-4c6f-95c9-45e7423b62ff